Cogmind - Beta 11.1 @@@ ROGUE MODE // 2022.05.13 @ 22:56:30 Player: Olga Result: Self-destructed Performance ------------- Evolutions (5) 2500 Regions Visited (10) 2000 Robots Destroyed (0) 0 Value Destroyed (0) 0 Prototype IDs (1) 20 Alien Tech Used (0) 0 Bonus (2487) 2487 TOTAL SCORE: 7007 Bonus ------- Pacifist 1987 Entered DSFs 500 Cogmind --------- Core Integrity 789/1000 Matter 195/300 Energy 100/100 System Corruption 7% Temperature Cool (0) Movement Core (50) Location -5/Factory Parts ------- > --- POWER (1) -------- (None) > --- PROPULSION (6) --- (None) > --- UTILITY (8) ------ Advanced Visual Processing Unit Improved Hacking Suite System Shield > --- WEAPON (2) ------- (None) > --- INVENTORY (5) ---- Light Fission Core Advanced Terrain Scanner Graphene Brace Improved Proton Missile Launcher Spear Peak State ------------ > --- POWER ------------ (None) > --- PROPULSION ------- (None) > --- UTILITY ---------- Advanced Visual Processing Unit Improved Light Armor Plating Graphene Brace Improved Hacking Suite Improved Hacking Suite System Shield > --- WEAPON ----------- (None) > --- INVENTORY -------- Light Fission Core Advanced Terrain Scanner Improved Proton Missile Launcher Spear [Rating: 27] Favorites ----------- Power None Propulsion Flight Unit Flight Unit Flight Unit Utility Advanced Visual Processing Unit Device Precision Matter Filter Processor Advanced Visual Processing Unit Hackware Improved Hacking Suite Protection Improved Light Armor Plating Weapon Spear Piercing Weapon Spear Build | -11 -10 -9 -9 -8 -7 -7 -6 -5 -5 -5 ------- Run | Scr Mat Mat Min Mat Fac DSF Fac Fac Was Fac Slots Evolved 10 | . . 2 . 2 2 . 2 2 . . Power . | . . . . . . . . . . . Propulsion 4 | . . 2 . . 2 . . . . . Utility 6 | . . . . 2 . . 2 2 . . Weapon . | . . . . . . . . . . . Parts Attached 12 | . 1 2 . . . 2 2 3 1 1 Power . | . . . . . . . . . . . Engine . | . . . . . . . . . . . Core . | . . . . . . . . . . . Reactor . | . . . . . . . . . . . Propulsion 1 | . 1 . . . . . . . . . Treads . | . . . . . . . . . . . Leg . | . . . . . . . . . . . Wheel . | . . . . . . . . . . . Hover . | . . . . . . . . . . . Flight 1 | . 1 . . . . . . . . . Utility 10 | . . 2 . . . 2 2 2 1 1 Device 2 | . . . . . . . . . 1 1 Storage . | . . . . . . . . . . . Processor 1 | . . 1 . . . . . . . . Hackware 3 | . . . . . . . 2 1 . . Protection 4 | . . 1 . . . 2 . 1 . . Artifact . | . . . . . . . . . . . Weapon 1 | . . . . . . . . 1 . . Energy Gun . | . . . . . . . . . . . Energy Cannon . | . . . . . . . . . . . Ballistic Gun . | . . . . . . . . . . . Ballistic Cannon . | . . . . . . . . . . . Launcher . | . . . . . . . . . . . Special Weapon . | . . . . . . . . . . . Impact Weapon . | . . . . . . . . . . . Slashing Weapon . | . . . . . . . . . . . Piercing Weapon 1 | . . . . . . . . 1 . . Special Melee Weapon . | . . . . . . . . . . . Unidentified Prototypes 1 | . . . . . . . . . . 1 Parts Lost 4 | . . . . . . 2 . 1 1 . Power . | . . . . . . . . . . . Propulsion 1 | . . . . . . 1 . . . . Utility 3 | . . . . . . 1 . 1 1 . Weapon . | . . . . . . . . . . . Highest Loss Streak 2 | . . . . . . 2 . 1 1 . To Critical Strikes . | . . . . . . . . . . . Average Slot Usage (%) 23 | . 7 29 33 27 23 19 20 29 23 17 Flight 3 | . 7 11 11 9 7 3 . . . . Processor 6 | . . 9 11 9 7 7 6 5 5 5 Hackware 7 | . . . . . . . 7 16 14 11 Protection 5 | . . 9 11 9 7 7 6 4 2 . Naked Turns 13 | . 13 . . . . . . . . . Heaviest Build 5 | . . 3 3 3 3 4 3 5 3 . Greatest Support 4 | 3 4 4 4 4 4 4 3 3 3 3 Greatest Overweight (x) 1 | . . . . . . . . 1 . . Average Overweight (x) . | . . . . . . . . . . . Largest Inventory Capacity 5 | . 5 5 5 5 5 5 5 5 5 5 Average Capacity 5 | . 5 5 5 5 5 5 5 5 5 5 Most Carried 5 | . 5 4 4 5 5 5 5 5 5 5 Average Carried 4 | . . 3 4 4 5 4 4 4 4 5 Final Capacity 5 | 5 5 5 5 5 5 5 5 5 5 5 Final Carried 5 | 5 . 4 4 5 5 4 5 4 5 5 Class Distribution -------------------- 51% | Hacker-Mutant 48% | Mutant Dominant Class ---------------- Mutant | -9/Materials Mutant | -9/Mines Mutant | -8/Materials Mutant | -7/Factory Mutant | -7/DSF Hacker-Mutant | -6/Factory Hacker-Mutant | -5/Factory Hacker-Mutant | -5/Waste Hacker-Mutant | -5/Factory Resources | -11 -10 -9 -9 -8 -7 -7 -6 -5 -5 -5 ----------- Run | Scr Mat Mat Min Mat Fac DSF Fac Fac Was Fac Matter Collected 200 | 200 . . . . . . . . . . Remotely . | . . . . . . . . . . . Salvage Created . | . . . . . . . . . . . Parts . | . . . . . . . . . . . Haulers Intercepted . | . . . . . . . . . . . Recyclers Shooed . | . . . . . . . . . . . Parts Field Recycled . | . . . . . . . . . . . Retrieved Matter . | . . . . . . . . . . . Parts Self-Destructed . | . . . . . . . . . . . Prevented . | . . . . . . . . . . . Kills | -11 -10 -9 -9 -8 -7 -7 -6 -5 -5 -5 ------- Run | Scr Mat Mat Min Mat Fac DSF Fac Fac Was Fac Combat Hostiles Destroyed . | . . . . . . . . . . . Classes Destroyed . | . . . . . . . . . . . Best Kill Streak . | . . . . . . . . . . . Combat Bots Only . | . . . . . . . . . . . Max Kills in Single Turn . | . . . . . . . . . . . Gunslinging . | . . . . . . . . . . . Exploded . | . . . . . . . . . . . Melee . | . . . . . . . . . . . Uniques/NPCs Destroyed . | . . . . . . . . . . . Combat | -11 -10 -9 -9 -8 -7 -7 -6 -5 -5 -5 -------- Run | Scr Mat Mat Min Mat Fac DSF Fac Fac Was Fac Damage Taken 1098 | . . 92 44 . . 428 204 168 42 120 Core 656 | . . 52 10 . . 310 73 56 42 113 Absorbed by Shields . | . . . . . . . . . . . Core Remaining (%) 88 | 100 100 . 84 100 . 55 91 . . . Volleys Fired . | . . . . . . . . . . . Largest . | . . . . . . . . . . . Hottest . | . . . . . . . . . . . Shots Fired . | . . . . . . . . . . . Gun . | . . . . . . . . . . . Cannon . | . . . . . . . . . . . Launcher . | . . . . . . . . . . . Special . | . . . . . . . . . . . Kinetic . | . . . . . . . . . . . Thermal . | . . . . . . . . . . . Explosive . | . . . . . . . . . . . Electromagnetic . | . . . . . . . . . . . Robot Hit Streak . | . . . . . . . . . . . Robot Miss Streak . | . . . . . . . . . . . Penetration Max . | . . . . . . . . . . . Secondary Targets . | . . . . . . . . . . . Shots Hit Robots . | . . . . . . . . . . . Core Hits 1 | . . . . . . . . . . 1 Critical Kills . | . . . . . . . . . . . Critical Parts Destroyed . | . . . . . . . . . . . Critical Strikes . | . . . . . . . . . . . Melee Attacks 1 | . . . . . . . . 1 . . Impact . | . . . . . . . . . . . Slashing . | . . . . . . . . . . . Piercing 1 | . . . . . . . . 1 . . Sneak Attacks . | . . . . . . . . . . . Combat Hostiles . | . . . . . . . . . . . Follow-up Attacks . | . . . . . . . . . . . Damage Inflicted 15 | . . . . . . . . . . 15 Guns . | . . . . . . . . . . . Cannons . | . . . . . . . . . . . Explosions . | . . . . . . . . . . . Melee . | . . . . . . . . . . . Ramming 15 | . . . . . . . . . . 15 Kinetic . | . . . . . . . . . . . Thermal . | . . . . . . . . . . . Explosive . | . . . . . . . . . . . Electromagnetic . | . . . . . . . . . . . Impact . | . . . . . . . . . . . Slashing . | . . . . . . . . . . . Piercing . | . . . . . . . . . . . Highest Corruption 7 | . . . . . . . . . 5 7 Average Corruption 6 | . . . . . . . . . 5 6 Corruption Purged . | . . . . . . . . . . . Corruption Blocked . | . . . . . . . . . . . Effects 4 | . . . . . . . . . 1 3 Matter Fused 1 | . . . . . . . . . . 1 Heat Flow Errors 1 | . . . . . . . . . 1 . Energy Discharges 1 | . . . . . . . . . . 1 Data Loss (minor) 1 | . . . . . . . . . . 1 Overload Shots . | . . . . . . . . . . . Overflow Damage . | . . . . . . . . . . . Projectiles . | . . . . . . . . . . . Explosions . | . . . . . . . . . . . Melee . | . . . . . . . . . . . Knockbacks . | . . . . . . . . . . . Impact . | . . . . . . . . . . . Kinetic . | . . . . . . . . . . . Secondary . | . . . . . . . . . . . Self-Inflicted Damage 7 | . . . . . . . . . . 7 Shots . | . . . . . . . . . . . Rammed 1 | . . . . . . . . . . 1 Targets Rammed 1 | . . . . . . . . . . 1 Kicked . | . . . . . . . . . . . Crushed . | . . . . . . . . . . . Highest Temperature 82 | . . . . . . . . . 82 . Average Temperature 44 | . . . . . . . . . 44 . Received Heat Transfer 222 | . . 24 . . . . 117 81 . . Siege Activations . | . . . . . . . . . . . Robots Corrupted . | . . . . . . . . . . . Combat Hostiles . | . . . . . . . . . . . Parts Fried . | . . . . . . . . . . . Impact Corruptions . | . . . . . . . . . . . Robots Melted . | . . . . . . . . . . . Combat Hostiles . | . . . . . . . . . . . Parts Melted . | . . . . . . . . . . . Heat Transferred . | . . . . . . . . . . . Parts Sabotaged . | . . . . . . . . . . . Parts Stolen . | . . . . . . . . . . . Parts Stripped . | . . . . . . . . . . . Power Chain Reactions . | . . . . . . . . . . . Missiles Intercepted . | . . . . . . . . . . . Alert | -11 -10 -9 -9 -8 -7 -7 -6 -5 -5 -5 ------- Run | Scr Mat Mat Min Mat Fac DSF Fac Fac Was Fac Peak Influence 58 | . . 15 50 46 41 28 48 58 20 15 Initial 31 | . . . 5 31 20 28 4 23 20 . Average 19 | . . 2 29 37 28 19 36 20 16 . Maximum Alert Level . | . . . . . . . . . . . Low Security (%) 100 | . 100 100 100 100 100 100 100 100 100 100 Level 1 . | . . . . . . . . . . . Level 2 . | . . . . . . . . . . . Level 3 . | . . . . . . . . . . . Level 4 . | . . . . . . . . . . . Level 5 . | . . . . . . . . . . . High Security . | . . . . . . . . . . . Max Security . | . . . . . . . . . . . Squads Dispatched 1 | . . . . . . 1 . . . . Investigation . | . . . . . . . . . . . Extermination . | . . . . . . . . . . . Reinforcement 1 | . . . . . . 1 . . . . Assault . | . . . . . . . . . . . Garrison . | . . . . . . . . . . . Intercept . | . . . . . . . . . . . Searches Triggered . | . . . . . . . . . . . Construction Impeded . | . . . . . . . . . . . Haulers Reinforced . | . . . . . . . . . . . Active Scanning Responses . | . . . . . . . . . . . Cargo Convoy Interrupts . | . . . . . . . . . . . Stealth | -11 -10 -9 -9 -8 -7 -7 -6 -5 -5 -5 --------- Run | Scr Mat Mat Min Mat Fac DSF Fac Fac Was Fac Distress Signals . | . . . . . . . . . . . Communications Jammed . | . . . . . . . . . . . Distress Signals . | . . . . . . . . . . . Times Spotted 41 | . . 7 11 1 2 3 5 4 6 2 Peak Tracking Total 10 | . . 7 10 1 2 3 4 4 6 1 Tactical Retreats 3 | . . . 2 . . . . 1 . . Traps | -11 -10 -9 -9 -8 -7 -7 -6 -5 -5 -5 ------- Run | Scr Mat Mat Min Mat Fac DSF Fac Fac Was Fac Traps Triggered 4 | . . . . . . . . 1 . 3 Indirectly . | . . . . . . . . . . . Trap Hack Attempts . | . . . . . . . . . . . Triggered . | . . . . . . . . . . . Disarmed . | . . . . . . . . . . . Reprogrammed . | . . . . . . . . . . . Reused . | . . . . . . . . . . . Traps Extracted . | . . . . . . . . . . . Installed . | . . . . . . . . . . . Triggered . | . . . . . . . . . . . Machines | -11 -10 -9 -9 -8 -7 -7 -6 -5 -5 -5 ---------- Run | Scr Mat Mat Min Mat Fac DSF Fac Fac Was Fac Machines Disabled . | . . . . . . . . . . . Max in Single Turn . | . . . . . . . . . . . Machines Sabotaged . | . . . . . . . . . . . Garrisons Compromised . | . . . . . . . . . . . Overloaded Fab Kills . | . . . . . . . . . . . Hacking | -11 -10 -9 -9 -8 -7 -7 -6 -5 -5 -5 --------- Run | Scr Mat Mat Min Mat Fac DSF Fac Fac Was Fac Machines Accessed 7 | . 1 1 . . 3 . 2 . . . Terminals 7 | . 1 1 . . 3 . 2 . . . Fabricators . | . . . . . . . . . . . Repair Stations . | . . . . . . . . . . . Recycling Units . | . . . . . . . . . . . Scanalyzers . | . . . . . . . . . . . Garrison Access . | . . . . . . . . . . . Total Hacks 11 | . 1 2 . . 4 . 4 . . . Successful 3 | . . . . . 2 . 1 . . . Failed 8 | . 1 2 . . 2 . 3 . . . Catastrophic 2 | . 1 . . . 1 . . . . . Database Lockouts . | . . . . . . . . . . . Manual 9 | . 1 2 . . 2 . 4 . . . Terminals 11 | . 1 2 . . 4 . 4 . . . Fabricators . | . . . . . . . . . . . Repair Stations . | . . . . . . . . . . . Recycling Units . | . . . . . . . . . . . Scanalyzers . | . . . . . . . . . . . Garrison Access . | . . . . . . . . . . . Terminal Hacks 2 | . . . . . 2 . . . . . Open DSF 1 | . . . . . 1 . . . . . Terminal Index 1 | . . . . . 1 . . . . . Fabricator Hacks . | . . . . . . . . . . . Repair Station Hacks . | . . . . . . . . . . . Recycling Unit Hacks . | . . . . . . . . . . . Scanalyzer . | . . . . . . . . . . . Garrison Access Hacks . | . . . . . . . . . . . Unauthorized Hacks 1 | . . . . . . . 1 . . . Terminals 1 | . . . . . . . 1 . . . Botnet 1 | . . . . . . . 1 . . . Fabricators . | . . . . . . . . . . . Repair Stations . | . . . . . . . . . . . Recycling Units . | . . . . . . . . . . . Scanalyzers . | . . . . . . . . . . . Garrison Access . | . . . . . . . . . . . Data Cores Recovered . | . . . . . . . . . . . Used . | . . . . . . . . . . . Hacking Detections 6 | . 1 1 . . 2 . 2 . . . Full Trace Events . | . . . . . . . . . . . Feedback Events . | . . . . . . . . . . . Feedback Blocked . | . . . . . . . . . . . Robot Schematics Acquired . | . . . . . . . . . . . Robots Built . | . . . . . . . . . . . Authchips . | . . . . . . . . . . . Time . | . . . . . . . . . . . Total Robot Build Rating . | . . . . . . . . . . . Part Schematics Acquired . | . . . . . . . . . . . Parts Built . | . . . . . . . . . . . Authchips . | . . . . . . . . . . . Time . | . . . . . . . . . . . Total Part Build Rating . | . . . . . . . . . . . Parts Repaired . | . . . . . . . . . . . Time . | . . . . . . . . . . . Parts Recycled . | . . . . . . . . . . . Recycled Matter . | . . . . . . . . . . . Retrieved Matter . | . . . . . . . . . . . Retrieved Components . | . . . . . . . . . . . Parts Scanalyzed . | . . . . . . . . . . . Part Schematics Acquired . | . . . . . . . . . . . Parts Damaged . | . . . . . . . . . . . Bothacking | -11 -10 -9 -9 -8 -7 -7 -6 -5 -5 -5 ------------ Run | Scr Mat Mat Min Mat Fac DSF Fac Fac Was Fac Used RIF Installer . | . . . . . . . . . . . Robots Hacked . | . . . . . . . . . . . Non-combat . | . . . . . . . . . . . Combat . | . . . . . . . . . . . Robot Hacks Applied . | . . . . . . . . . . . Relay Couplers Released . | . . . . . . . . . . . Fabnet Peak Effective % . | . . . . . . . . . . . Robots Rewired . | . . . . . . . . . . . Allies Hacked . | . . . . . . . . . . . Hacks Repelled . | . . . . . . . . . . . Allies | -11 -10 -9 -9 -8 -7 -7 -6 -5 -5 -5 -------- Run | Scr Mat Mat Min Mat Fac DSF Fac Fac Was Fac Total Allies 1 | . . . . . . . . . 1 . Largest Group 1 | . . . . . . . . . 1 . Highest-Rated Group 31 | . . . . . . . . . 31 . Highest-Rated Ally 31 | . . . . . . . . . 31 . Total Orders . | . . . . . . . . . . . Ally Attacks 13 | . . . . . . . . . 13 . Total Damage 166 | . . . . . . . . . 166 . Kills . | . . . . . . . . . . . Allies Corrupted . | . . . . . . . . . . . Allies Melted . | . . . . . . . . . . . Intel | -11 -10 -9 -9 -8 -7 -7 -6 -5 -5 -5 ------- Run | Scr Mat Mat Min Mat Fac DSF Fac Fac Was Fac Robot Analysis Total . | . . . . . . . . . . . Derelict Logs Recovered 1 | . . . 1 . . . . . . . Drone Launches . | . . . . . . . . . . . Drone Recoveries . | . . . . . . . . . . . Exploration | -11 -10 -9 -9 -8 -7 -7 -6 -5 -5 -5 ------------- Run | Scr Mat Mat Min Mat Fac DSF Fac Fac Was Fac Turns Passed 635 | . 27 53 37 29 69 41 114 133 38 94 Spaces Moved 1222 | 1 53 115 92 70 171 82 217 199 72 150 Core 692 | 1 19 . . . . 34 217 199 72 150 Treads . | . . . . . . . . . . . Legs . | . . . . . . . . . . . Wheels . | . . . . . . . . . . . Hover . | . . . . . . . . . . . Flight 530 | . 34 115 92 70 171 48 . . . . Fastest Speed 40 | 50 40 40 40 40 40 40 50 50 50 50 Average Speed 46 | 50 43 40 40 40 40 44 50 52 50 50 Slowest Speed 100 | 50 50 40 40 40 40 50 50 100 50 50 Overloaded Moves . | . . . . . . . . . . . Propulsion Burnouts . | . . . . . . . . . . . Robots Hopped 3 | . . . 2 1 . . . . . . Cave-ins Triggered . | . . . . . . . . . . . Exploration Rate (%) 26 | 2 18 16 38 15 8 91 10 6 84 6 Regions Visited 10 Branch Regions 1 Pre-discovered Areas . | . . . . . . . . . . . Known Exits Taken 1 | . . . . . 1 . . . . . Unknown Exits Taken 6 | 1 1 1 1 1 . . 1 . . . Scrap Searched . | . . . . . . . . . . . Spaces Dug . | . . . . . . . . . . . Terrain Destroyed . | . . . . . . . . . . . Melee . | . . . . . . . . . . . Projectile . | . . . . . . . . . . . AOE . | . . . . . . . . . . . Terrain Rammed . | . . . . . . . . . . . Walls Destroyed . | . . . . . . . . . . . Machines Disabled . | . . . . . . . . . . . Actions | -11 -10 -9 -9 -8 -7 -7 -6 -5 -5 -5 --------- Run | Scr Mat Mat Min Mat Fac DSF Fac Fac Was Fac Total 1281 | . 58 120 89 69 171 86 221 226 73 168 Wait 22 | . . . . . . . . 22 . . Move 1208 | . 52 114 87 67 171 81 216 199 71 150 Hop 3 | . . . 2 1 . . . . . . Pick Up 8 | . . 4 . 1 . 1 2 . . . Fast Attach 9 | . 1 2 . . . 1 2 1 1 1 Attach 3 | . . . . . . 1 . 2 . . Detach 2 | . . . . . . . . 1 1 . Swap . | . . . . . . . . . . . Drop 8 | . 5 . . . . 1 1 . . 1 Fire . | . . . . . . . . . . . Melee 1 | . . . . . . . . 1 . . Ram 1 | . . . . . . . . . . 1 Kick . | . . . . . . . . . . . Crush . | . . . . . . . . . . . Escape Stasis 15 | . . . . . . . . . . 15 Rewire 1 | . . . . . . 1 . . . . Trap . | . . . . . . . . . . . Miscellaneous . | . . . . . . . . . . . Route ------- -11/Scrapyard -10/Materials -9/Materials -9/Mines -8/Materials (discovered 2 exits: *Fac / Sto) -7/Factory -7/DSF -6/Factory -5/Factory -5/Waste -5/Factory History --------- Turn | Location | Event 1 | -11/Scrapyard | Released all parts (6) 1 | -11/Scrapyard | Discovered new exit (range 0) 1 | -11/Scrapyard | Entered Materials 22 | -10/Materials | Discovered new exit (range 16) 28 | -10/Materials | Entered another Materials area 28 | -9/Materials | Evolved 2 slots: Propulsion x2 75 | -9/Materials | Discovered new exit (range 16) 81 | -9/Materials | Entered Mines 90 | -9/Mines | Learned location of 1 exit from Materials 97 | -9/Mines | Met a Derelict bent on vengeance 116 | -9/Mines | Discovered new exit (range 6) 118 | -9/Mines | Entered Materials 118 | -8/Materials | Evolved 2 slots: Utility x2 119 | -8/Materials | Identified exit to Storage 140 | -8/Materials | Discovered new exit (range 19) 147 | -8/Materials | Entered Factory 147 | -7/Factory | Evolved 2 slots: Propulsion x2 216 | -7/Factory | Identified exit to DSF 216 | -7/Factory | Entered DSF 234 | -7/DSF | Additional patrols routed to DSF 251 | -7/DSF | Discovered new exit (range 14) 257 | -7/DSF | Entered Factory 257 | -6/Factory | Evolved 2 slots: Utility x2 303 | -6/Factory | Build established: Mutant 329 | -6/Factory | Discovered new exit (range 16) 371 | -6/Factory | Spotted B-75 Beast 371 | -6/Factory | Entered another Factory area 371 | -5/Factory | Evolved 2 slots: Utility x2 504 | -5/Factory | Sucked down chute 504 | -5/Factory | Entered Waste 505 | -5/Waste | Met a frightened Derelict 510 | -5/Waste | Spotted C-40 Crusher 510 | -5/Waste | Spotted C-40 Crusher 519 | -5/Waste | EMP discharged 525 | -5/Waste | Spotted C-40 Crusher 526 | -5/Waste | Spotted C-40 Crusher 529 | -5/Waste | Spotted C-40 Crusher 529 | -5/Waste | Spotted C-40 Crusher 529 | -5/Waste | Crushed by Compactor (1 part destroyed, 1 dropped) 537 | -5/Waste | Discovered new exit (range 11) 542 | -5/Waste | Entered Factory 619 | -5/Factory | Build established: Hacker-Mutant 636 | -5/Factory | Self-destructed Last Messages --------------- 00612_ Field strength at 94. 00612_ Field strength at 88. 00613_ Field strength at 82. 00614_ Field strength at 76. 00615_ Field strength at 70. 00616_ Field strength at 64. 00617_ Field strength at 58. 00618_ Field strength at 52. 00619_ Field strength at 46. 00620_ Field strength at 40. 00621_ Field strength at 34. 00622_ Field strength at 28. 00622_ K-01 Serf cleans the Nuclear Reactor. 00623_ Field strength at 22. 00624_ Field strength at 16. 00625_ Field strength at 10. 00626_ Field strength at 4. 00627_ Stasis field depleted. 00629_ K-01 Serf collects debris. 00634_ ALERT: All DSF locations entering lockdown mode. Map ----- +----------------------------------------------------+ | ?????????????????????????????????????????????????? | | ?????????????????????????????????????????????????? | | ?????????????????????????????????????????????????? | | ?????????????????????????????????????????????????? | | ?????????????????????????????????????????????????? | | ?????????????????????????????????????????????????? | | ??????????????????????? ???????????????????????? | | ??????????????????????? ?????????????????????? | | ??????????????????????? ????????????????????? | | ??????????????????????# #????????????????????? | | ??????????????????????# #????????????????????? | | ??????????????????????# #????????????????????? | | ??????????????????????# #????????????????????? | | ??????????????????????# #????????????????????? | | ##########????????????# #????????????????????? | | ############## #????????????????????? | | [ ! # # #????????????????????? | | # # R#????????????????????? | | # # #????????????????????? | | ?""" """ # # #????????????????????? | | ?""" """ # # #????????????????????? | | ??"" """?# + +????????????????????? | | ?? ?# # #????????????????????? | | ###+##+#?# # #????????????????????? | | #?# # #????????????????????? | | ###### #?# # @ #????????????????????? | | ?????# #?# # #????????????????????? | | ?????# #?# # #????????????????????? | | ?????# #?#########+#### #????????????????????? | | ?????# #?????????# #??# #????????????????????? | | ????# #?????????# #??# #????????????????????? | | """??# #???????### #### #????????????????????? | | """ # ######### #????????????????????? | | """ + k #????????????????????? | | #### #????????????????????? | | ###?????# """ +????????????????????? | | ????????# """ "Y" #????????????????????? | | ????????# """ " " k #????????????????????? | | ????????# """ #????????????????????? | | ????????# #????????????????????? | | ????????# """ """ #????????????????????? | | ???????? """ """ #????????????????????? | | ???????## """ """ #????????????????????? | | ????????# #????????????????????? | | ????????# !!! ###+##??????????????????????? | | ###+##### !! #???????????????????????????? | | !! #???????????????????????????? | | ]] #???????????????????????????? | | ]] +???????????????????????????? | | #???????????????????????????? | +----------------------------------------------------+ Best States ------------- Heat Dissipation 40 Energy Generation 5 Energy Capacity 100 Matter Stores 300 Matter Capacity 300 Sight Range 20 Terrain Scan Density 10 Armor Coverage 150 Evasion (%) 62 Offensive Hacking 24 Defensive Hacking 10 Item Schematics ----------------- None Robot Schematics ------------------ None Fabricated ------------ Nothing Alien Tech Used ----------------- None Achievements -------------- None Challenges ------------ None Game ------ Seed GaussPrecisionFrame Manual? 0 Play Time 00:09:40 Cumulative 255.4 hours Start 2022.05.13 @ 22:47:39 End 2022.05.13 @ 22:56:30 Sessions 1 Manual Loads 0 Difficulty Rogue Special Mode None Game No. 378 Rogue 375 Adventurer 0 Explorer 3 Win Type - Total 9 Types 9/0/0/0/0/0/0/0/0 Lore% 71 Gallery% 75 Achievement% 63 Wizard Run 0 Options --------- ASCII 1 Keyboard 1 Movement Vi Keybinds 0 Fullscreen 1 Font 18/SmallcapsGlow Map View 76x50 Tactical HUD 1 Map Filters NONE Filters NONE Steam 1 RUN: 2bd1e7c6-a1cf-4b1b-9d36-29002095e9c6